bitfinex/quotes_BTCUSD_20230904
["timestamp","ask_amount","ask_price","bid_price","bid_amount"]
[1693832749721,0.05290037,25877.0,25876.0,0.53285444]
[1693832749904,0.05290037,25877.0,25876.0,0.59013988]
[1693832755520,0.05290037,25877.0,25876.0,0.55927222]
[1693832755765,0.05290037,25877.0,25876.0,0.58207787]
[1693832756420,0.05290037,25877.0,25876.0,0.57907787]
[1693832756626,0.05290037,25877.0,25876.0,0.60007787]
[1693832756829,0.05290037,25877.0,25876.0,0.62507787]
[1693832757009,0.05290037,25877.0,25876.0,0.57507787]
[1693832757411,0.05290037,25877.0,25876.0,0.61707787]
[1693832761705,0.05290037,25877.0,25876.0,0.64845034]
[1693832763472,0.05290037,25877.0,25876.0,0.61707787]
[1693832768588,0.05290037,25877.0,25876.0,0.63427222]
[1693832768792,0.05290037,25877.0,25876.0,0.66401926]
[1693832769202,0.05290037,25877.0,25876.0,0.63427222]
[1693832769412,0.05290037,25877.0,25876.0,0.639963]
[1693832769653,0.05290037,25877.0,25876.0,0.642963]
[1693832770047,0.05290037,25877.0,25876.0,0.667963]
[1693832770225,0.05290037,25877.0,25876.0,0.59227222]
[1693832770428,0.05290037,25877.0,25876.0,0.64227222]
[1693832770773,0.0197,25880.0,25877.0,0.44744994]
[1693832770927,0.0197,25880.0,25879.0,0.1079]
[1693832771142,0.0197,25880.0,25879.0,0.49498678]
[1693832772054,0.0197,25880.0,25879.0,0.50598678]
[1693832772672,0.0197,25880.0,25879.0,0.53340355]
[1693832773072,0.0197,25880.0,25879.0,0.54640355]
[1693832773426,0.0197,25880.0,25879.0,0.65281667]
[1693832784298,0.0197,25880.0,25879.0,0.6253999]
[1693832784919,0.0197,25880.0,25879.0,0.23831312]
[1693832786245,0.05085206,25880.0,25879.0,0.23831312]
[1693832786674,0.26007468,25880.0,25879.0,0.23831312]
[1693832789245,0.05085206,25880.0,25879.0,0.23831312]
[1693832790201,0.05085206,25880.0,25879.0,0.26396356]
[1693832790787,0.05085206,25880.0,25879.0,0.65105034]
[1693832798119,0.05085206,25880.0,25879.0,0.6253999]
[1693832798292,0.05085206,25880.0,25879.0,0.23831312]
[1693832800537,0.05085206,25880.0,25879.0,0.26135491]
[1693832809580,0.05085206,25880.0,25879.0,0.64844169]
[1693832813587,0.05085206,25880.0,25879.0,0.6253999]
[1693832813803,0.05085206,25880.0,25879.0,0.64980366]
[1693832821825,0.05085206,25880.0,25879.0,0.6801918]
[1693832839143,0.04480206,25880.0,25879.0,0.6801918]
[1693832839491,0.04480206,25880.0,25879.0,0.65578804]
[1693832840749,0.04480206,25880.0,25879.0,0.68157231]
[1693832842777,0.04480206,25880.0,25879.0,1.12221273]
[1693832842977,0.04480206,25880.0,25879.0,1.3760575]
[1693832843394,0.04480206,25880.0,25879.0,1.60701158]
[1693832843597,0.04480206,25880.0,25879.0,1.59601158]
[1693832843808,0.04480206,25880.0,25879.0,1.3650575]
[1693832844011,0.04480206,25880.0,25879.0,1.3770575]
[1693832844249,0.04480206,25880.0,25879.0,1.4020575]
[1693832844457,0.04480206,25880.0,25879.0,1.3770575]
[1693832844662,0.04480206,25880.0,25879.0,1.4020575]
[1693832844865,0.04480206,25880.0,25879.0,1.54062743]
[1693832845657,0.04480206,25880.0,25879.0,1.35586417]
[1693832848472,0.04480206,25880.0,25879.0,1.04178804]
[1693832848681,0.04480206,25880.0,25879.0,1.37076106]
[1693832850726,0.0197,25882.0,25881.0,0.06]
[1693832850929,0.0197,25883.0,25882.0,0.06]
[1693832851135,0.0197,25883.0,25882.0,1.27641994]
[1693832851341,0.0197,25883.0,25882.0,1.18410797]
[1693832851778,0.0197,25883.0,25882.0,1.08574915]
[1693832852152,0.0197,25883.0,25882.0,0.94726455]
[1693832852359,0.0197,25883.0,25882.0,1.06116337]
[1693832853384,0.0197,25883.0,25882.0,1.08616337]
[1693832853832,0.0197,25883.0,25882.0,1.06116337]
[1693832854045,0.0197,25883.0,25882.0,1.08616337]
[1693832854245,0.0197,25883.0,25882.0,1.11116337]
[1693832854449,0.0197,25883.0,25882.0,1.11412933]
[1693832854623,0.0197,25883.0,25882.0,1.04685156]
[1693832855704,0.0197,25883.0,25882.0,1.02185156]
[1693832855869,0.0197,25883.0,25882.0,1.0188856]
[1693832856065,0.0197,25883.0,25882.0,1.04208292]
[1693832856683,0.017737,25883.0,25882.0,1.04208292]
[1693832857950,0.017737,25883.0,25882.0,1.0188856]
[1693832858501,0.04512825,25883.0,25882.0,1.04538417]
[1693832859343,0.04512825,25883.0,25882.0,0.6588856]
[1693832859550,0.04512825,25883.0,25882.0,0.6788856]
[1693832859753,0.04512825,25883.0,25882.0,0.7188856]
[1693832861409,0.04512825,25883.0,25882.0,0.74959104]
[1693832862452,0.04512825,25883.0,25882.0,0.72459104]
[1693832862840,0.04512825,25883.0,25882.0,0.70459104]
[1693832863607,0.04512825,25883.0,25882.0,0.75998143]
[1693832865625,0.04512825,25883.0,25882.0,0.73498143]
[1693832866966,0.04512825,25883.0,25882.0,0.75998143]
[1693832870719,0.04512825,25883.0,25882.0,0.73498143]
[1693832870923,0.04512825,25883.0,25882.0,0.75998143]
[1693832871535,0.04512825,25883.0,25882.0,0.73498143]
[1693832871730,0.04512825,25883.0,25882.0,0.75998143]
[1693832871925,0.04512825,25883.0,25882.0,0.77998143]
[1693832872944,0.04512825,25883.0,25882.0,0.75998143]
[1693832878056,0.04120625,25883.0,25882.0,0.75998143]
[1693832887853,0.04120625,25883.0,25882.0,0.8522592]
[1693832888100,0.04120625,25883.0,25882.0,0.9907438]
[1693832888740,0.04120625,25883.0,25882.0,1.18392153]
[1693832889288,0.03337025,25883.0,25882.0,1.18392153]
[1693832889497,0.03337025,25883.0,25882.0,1.09164376]
[1693832895929,0.03337025,25883.0,25882.0,0.82168899]
[1693832898813,0.03337025,25883.0,25882.0,0.78168899]
[1693832900371,0.27970207,25883.0,25882.0,0.39460221]
[1693832900583,0.27970207,25883.0,25882.0,0.16389882]
[1693832900825,0.27970207,25883.0,25882.0,0.05]
[1693832901694,0.37970207,25883.0,25882.0,0.025]
[1693832901903,1.30834651,25883.0,25882.0,0.025]
[1693832902126,1.97315351,25883.0,25882.0,0.025]
[1693832902567,1.97315351,25883.0,25882.0,0.022]
[1693832902764,0.06,25882.0,25877.0,0.62020856]
[1693832902982,0.15483471,25881.0,25878.0,0.09434]
[1693832903204,0.02428672,25881.0,25878.0,0.12331124]
[1693832904010,0.17885472,25881.0,25878.0,0.12331124]
[1693832904887,0.42487754,25881.0,25878.0,0.12331124]
[1693832905273,0.1,25878.0,25877.0,0.51230856]
[1693832905477,1.90844871,25878.0,25877.0,0.41989556]
[1693832905681,1.90844871,25878.0,25877.0,0.41889963]
[1693832905682,1.753614,25878.0,25877.0,0.41889963]
[1693832906113,1.77785115,25878.0,25877.0,0.41889963]
[1693832906305,1.77785115,25878.0,25877.0,0.42189963]
[1693832906513,1.77785115,25878.0,25877.0,0.42589963]
[1693832906746,1.77785115,25878.0,25877.0,0.46808959]
[1693832907411,1.77785115,25878.0,25877.0,0.46408959]
[1693832908419,2.03887412,25878.0,25877.0,0.46108959]
[1693832908618,2.03887412,25878.0,25877.0,0.46808959]
[1693832909067,2.03887412,25878.0,25877.0,0.46408959]
[1693832909272,2.04087412,25878.0,25877.0,0.46108959]
[1693832909477,2.04587412,25878.0,25877.0,0.46108959]
[1693832909684,3.32479493,25878.0,25877.0,0.41889963]
[1693832910473,3.32279493,25878.0,25877.0,0.41889963]
[1693832910894,3.53074461,25878.0,25877.0,0.41889963]
[1693832911103,3.32279493,25878.0,25877.0,0.41889963]
[1693832911411,3.31779493,25878.0,25877.0,0.41889963]
[1693832911641,3.32979493,25878.0,25877.0,0.42089963]
[1693832911819,3.33579493,25878.0,25877.0,0.42289963]
[1693832912024,3.31779493,25878.0,25877.0,0.41889963]
[1693832912230,3.59761832,25878.0,25877.0,0.46078959]
[1693832912444,3.61561832,25878.0,25877.0,0.46478959]
[1693832914493,3.33579493,25878.0,25877.0,0.46478959]
[1693832914907,3.33579493,25878.0,25877.0,0.42289963]
[1693832915523,3.40113493,25878.0,25877.0,0.42289963]
[1693832915738,3.41409493,25878.0,25877.0,0.42289963]
[1693832915942,3.41421493,25878.0,25877.0,0.42289963]
[1693832916180,3.40929493,25878.0,25877.0,0.42289963]
[1693832916374,3.40917493,25878.0,25877.0,0.42289963]
[1693832916585,3.40215493,25878.0,25877.0,0.42289963]
[1693832916794,3.57260392,25878.0,25877.0,0.46518959]
[1693832917221,3.55694792,25878.0,25877.0,0.46518959]
[1693832917457,4.32980492,25878.0,25877.0,0.46518959]
[1693832919733,4.09299593,25878.0,25877.0,0.46518959]
[1693832920764,4.09299593,25878.0,25877.0,0.42289963]
[1693832923838,4.31008558,25878.0,25877.0,0.42289963]
[1693832924397,4.09299593,25878.0,25877.0,0.42289963]
[1693832928398,4.16421593,25878.0,25877.0,0.42289963]
[1693832928606,4.16247593,25878.0,25877.0,0.42289963]
[1693832928783,4.16313593,25878.0,25877.0,0.42289963]
[1693832929152,4.16295593,25878.0,25877.0,0.42289963]
[1693832929354,4.16721593,25878.0,25877.0,0.42289963]
[1693832929488,4.16745593,25878.0,25877.0,0.42289963]
[1693832929689,4.16487593,25878.0,25877.0,0.42289963]
[1693832929895,4.16673593,25878.0,25877.0,0.42289963]
[1693832930094,4.16679593,25878.0,25877.0,0.42289963]
[1693832930296,4.16523593,25878.0,25877.0,0.42289963]
[1693832930501,4.16625593,25878.0,25877.0,0.42289963]
[1693832930906,4.16505593,25878.0,25877.0,0.42289963]
[1693832931157,4.16499593,25878.0,25877.0,0.42289963]
[1693832931359,4.16301593,25878.0,25877.0,0.42289963]
[1693832931565,4.09299593,25878.0,25877.0,0.46518959]
[1693832932126,4.34796276,25878.0,25877.0,0.46518959]
[1693832934186,4.09299593,25878.0,25877.0,0.46518959]
[1693832934594,4.35587535,25878.0,25877.0,0.46518959]
[1693832939122,4.38220627,25878.0,25877.0,0.46518959]
[1693832939336,4.09299593,25878.0,25877.0,0.41289963]
[1693832939955,4.30750885,25878.0,25877.0,0.41289963]
[1693832943780,4.09299593,25878.0,25877.0,0.41289963]
[1693832945168,4.36700934,25878.0,25877.0,0.41289963]
[1693832945616,4.09299593,25878.0,25877.0,0.41289963]
[1693832950790,4.18544526,25878.0,25877.0,0.41289963]
[1693832952672,4.32411926,25878.0,25877.0,0.41289963]
[1693832953730,4.23166993,25878.0,25877.0,0.41289963]
[1693832956805,4.4165686,25878.0,25877.0,0.41289963]
[1693832958818,4.2778946,25878.0,25877.0,0.41289963]
[1693832959793,4.50892255,25878.0,25877.0,0.41289963]
[1693832962516,4.63375369,25878.0,25877.0,0.41289963]
[1693832962731,3.3806936,25878.0,25877.0,0.45418959]
[1693832962948,0.92784932,25878.0,25877.0,0.45418959]
[1693832963163,1.70070632,25878.0,25877.0,0.45418959]
[1693832963361,0.92784932,25878.0,25877.0,0.45418959]
[1693832963567,1.70070632,25878.0,25877.0,0.45418959]
[1693832963775,2.47356332,25878.0,25877.0,0.45418959]
[1693832963984,2.73777534,25878.0,25877.0,0.45418959]
[1693832965054,2.73777534,25878.0,25877.0,0.41289963]
[1693832965675,2.64502017,25878.0,25877.0,0.41289963]
[1693832965894,2.7377594,25878.0,25877.0,0.41289963]
[1693832966928,2.64502017,25878.0,25877.0,0.41289963]
[1693832973217,2.75292017,25878.0,25877.0,0.41289963]
[1693832973605,2.75292017,25878.0,25877.0,0.45418959]
[1693832974237,2.87579493,25878.0,25877.0,0.41289963]
[1693832974453,3.76139116,25878.0,25877.0,0.41289963]
[1693832974673,4.01282696,25878.0,25877.0,0.41289963]
[1693832975881,3.99282696,25878.0,25877.0,0.41289963]
[1693832976400,3.74139116,25878.0,25877.0,0.41289963]
[1693832977282,3.98657793,25878.0,25877.0,0.41289963]
[1693832978693,3.98657793,25878.0,25877.0,0.45575519]
[1693832979467,0.13497638,25878.0,25877.0,0.6099559]
[1693832979688,0.04223715,25878.0,25877.0,0.76210596]
[1693832979889,0.04223715,25878.0,25877.0,0.60790525]
[1693832980096,0.04223715,25878.0,25877.0,0.57931119]
[1693832980303,0.154568,25881.0,25877.0,0.97074197]
[1693832980510,0.154568,25881.0,25880.0,0.1079]
[1693832981336,0.17338699,25881.0,25880.0,0.1079]
[1693832981540,0.17338699,25881.0,25880.0,0.1099]
[1693832981977,0.17338699,25881.0,25880.0,0.1079]
[1693832982156,0.17338699,25881.0,25880.0,0.1089]
[1693832982363,0.17338699,25881.0,25880.0,0.1304236]
[1693832982691,0.17338699,25881.0,25880.0,0.1314236]
[1693832983942,0.17338699,25881.0,25880.0,0.15446806]
[1693832993050,0.17338699,25881.0,25880.0,0.04656806]
[1693832994459,0.17338699,25881.0,25880.0,0.0235236]
[1693832997731,0.42724796,25881.0,25880.0,0.0235236]
[1693833004973,0.17338699,25881.0,25880.0,0.0235236]
[1693833009648,0.17338699,25881.0,25880.0,0.05226371]
[1693833010295,0.17338699,25881.0,25880.0,0.16016371]
[1693833011199,0.17338699,25881.0,25880.0,0.15916371]
[1693833011487,0.17338699,25881.0,25880.0,0.15816371]
[1693833031242,0.17338699,25881.0,25880.0,0.1294236]
[1693833032481,0.18430575,25881.0,25880.0,0.1294236]
[1693833033820,0.42081454,25881.0,25880.0,0.0215236]
[1693833034044,0.42081454,25881.0,25878.0,0.10633602]
[1693833034247,0.27017205,25880.0,25878.0,0.10633602]
[1693833035282,0.27017205,25880.0,25878.0,0.12133602]
[1693833035826,0.27017205,25880.0,25878.0,0.13533602]
[1693833036034,0.27017205,25880.0,25879.0,0.07794432]
[1693833037554,0.27017205,25880.0,25879.0,0.08294432]
[1693833038470,0.27017205,25880.0,25879.0,0.08894432]
[1693833039081,0.27017205,25880.0,25879.0,0.08394432]
[1693833039278,0.27017205,25880.0,25879.0,0.07794432]
[1693833039479,0.27017205,25880.0,25879.0,0.08894432]
[1693833039898,0.27017205,25880.0,25879.0,0.07794432]
[1693833040304,0.27017205,25880.0,25879.0,0.07894432]
[1693833041262,0.29974621,25880.0,25879.0,0.07994432]
[1693833043967,0.02957416,25880.0,25879.0,0.07994432]
[1693833044523,0.02957416,25880.0,25879.0,0.10653608]
[1693833046592,0.02957416,25880.0,25879.0,0.21443608]
[1693833050484,0.02957416,25880.0,25879.0,0.38019626]
[1693833051102,0.005979,25883.0,25879.0,0.38019626]
[1693833051320,0.005979,25883.0,25882.0,0.1079]
[1693833051721,0.160538,25883.0,25882.0,0.1079]
[1693833052340,0.160538,25883.0,25882.0,0.1386922]
[1693833054830,0.160538,25883.0,25882.0,0.1446922]
[1693833055197,0.160538,25883.0,25882.0,0.1386922]
[1693833055563,0.160538,25883.0,25882.0,0.1446922]
[1693833055759,0.160538,25883.0,25882.0,0.16434866]
[1693833055985,0.160538,25883.0,25882.0,0.16934866]
[1693833056195,0.19087081,25883.0,25882.0,0.16934866]
[1693833056391,0.19087081,25883.0,25882.0,0.16434866]
[1693833056795,0.19087081,25883.0,25882.0,0.16934866]
[1693833061335,0.03631181,25883.0,25882.0,0.16934866]
[1693833061493,0.03631181,25883.0,25882.0,0.52564324]
[1693833061696,0.03631181,25883.0,25882.0,0.55380132]
[1693833062509,0.03631181,25883.0,25882.0,0.52564324]
[1693833062715,0.03631181,25883.0,25882.0,0.55590748]
[1693833062983,0.005979,25883.0,25882.0,0.55590748]
[1693833063395,0.03632017,25883.0,25882.0,0.55590748]
[1693833063599,0.005979,25883.0,25882.0,0.55590748]
[1693833065021,0.142688,25885.0,25883.0,0.02698996]
[1693833065271,0.142688,25885.0,25884.0,0.1079]
[1693833065687,1.0075,25887.0,25884.0,0.13739336]
[1693833065893,0.0197,25887.0,25886.0,0.1079]
[1693833066925,0.162964,25887.0,25886.0,0.1079]
[1693833067361,0.162964,25887.0,25886.0,0.123556]
[1693833068105,0.162964,25887.0,25886.0,0.128556]
[1693833068308,0.162964,25887.0,25886.0,0.15952671]
[1693833068507,0.162964,25887.0,25886.0,0.15752671]
[1693833068895,0.162964,25887.0,25886.0,0.16352671]
[1693833070135,0.162964,25887.0,25886.0,0.134556]
[1693833070972,0.19122494,25887.0,25886.0,0.134556]
[1693833074079,0.42005043,25887.0,25886.0,0.026656]
[1693833075052,0.42005043,25887.0,25886.0,0.015656]
[1693833075489,0.42005043,25887.0,25886.0,0.021656]
[1693833075702,0.42005043,25887.0,25886.0,0.015656]
[1693833077271,0.42005043,25887.0,25886.0,0.020656]
[1693833077894,0.42005043,25887.0,25886.0,0.015656]
[1693833081807,1.95987676,25887.0,25886.0,0.015656]
[1693833083258,1.94017676,25887.0,25886.0,0.015656]
[1693833084502,1.16758876,25887.0,25886.0,0.015656]
[1693833084908,0.39500076,25887.0,25886.0,0.015656]
[1693833101760,0.48752098,25887.0,25886.0,0.015656]
[1693833113627,1.26010898,25887.0,25886.0,0.015656]
[1693833114827,1.39888931,25887.0,25886.0,0.015656]
[1693833116137,1.85548127,25887.0,25886.0,0.015656]
[1693833116385,2.11323059,25887.0,25886.0,0.015656]
[1693833116553,2.29827103,25887.0,25886.0,0.015656]
[1693833116762,2.29858082,25887.0,25886.0,0.015656]
[1693833118868,3.07116882,25887.0,25886.0,0.015656]
[1693833132560,2.88612838,25887.0,25886.0,0.015656]
[1693833133055,2.11354038,25887.0,25886.0,0.015656]
[1693833133643,2.88612838,25887.0,25886.0,0.015656]
[1693833133833,2.11354038,25887.0,25886.0,0.015656]
[1693833136329,1.85579106,25887.0,25886.0,0.015656]
[1693833136584,0.26424854,25887.0,25886.0,0.04183]
[1693833139254,0.26424854,25887.0,25886.0,0.015656]
[1693833140517,0.26424854,25887.0,25886.0,0.021656]
[1693833140729,0.26424854,25887.0,25886.0,0.026656]
[1693833140990,0.26424854,25887.0,25886.0,0.020656]
[1693833141202,0.26424854,25887.0,25886.0,0.021656]
[1693833141403,0.26424854,25887.0,25886.0,0.026656]
[1693833146546,0.17152494,25887.0,25886.0,0.026656]
[1693833147173,0.17152494,25887.0,25886.0,0.04998268]
[1693833147597,0.17152494,25887.0,25886.0,0.026656]
[1693833152908,0.40216088,25887.0,25886.0,0.026656]
[1693833155007,1.17474888,25887.0,25886.0,0.026656]
[1693833155798,1.94733688,25887.0,25886.0,0.026656]
[1693833156550,0.40216088,25887.0,25886.0,0.026656]
[1693833164157,0.17152494,25887.0,25886.0,0.026656]
[1693833164355,0.17152494,25887.0,25886.0,0.134556]
[1693833166443,0.38333694,25887.0,25886.0,0.026656]
[1693833169389,0.17152494,25887.0,25886.0,0.026656]
[1693833171154,0.17152494,25887.0,25886.0,0.16385557]
[1693833172788,0.17152494,25887.0,25886.0,0.18947632]
[1693833172990,0.02826094,25887.0,25886.0,0.18947632]
[1693833177841,0.02826094,25887.0,25886.0,0.5765631]
[1693833178725,0.02826094,25887.0,25886.0,0.5715631]
[1693833178907,0.02826094,25887.0,25886.0,0.5855631]
[1693833180250,0.02826094,25887.0,25886.0,0.5795631]
[1693833180662,0.02826094,25887.0,25886.0,0.5805631]
[1693833181075,0.02826094,25887.0,25886.0,0.5945631]
[1693833188141,0.02826094,25887.0,25886.0,0.17817675]
[1693833190219,0.31925474,25887.0,25886.0,0.17817675]
[1693833195379,0.02826094,25887.0,25886.0,0.17817675]
[1693833195592,0.02826094,25887.0,25886.0,0.20154728]
[1693833197838,0.02826094,25887.0,25886.0,0.58863406]
[1693833205650,0.02826094,25887.0,25886.0,0.56526353]
[1693833205852,0.02826094,25887.0,25886.0,0.70028052]
[1693833206964,0.02826094,25887.0,25886.0,0.67128052]
[1693833207172,0.02826094,25887.0,25886.0,0.69628052]
[1693833207378,0.02826094,25887.0,25886.0,0.67128052]
[1693833207808,0.02826094,25887.0,25886.0,0.69428052]
[1693833208016,0.02826094,25887.0,25886.0,0.60192858]
[1693833208226,0.02826094,25887.0,25886.0,0.62692858]
[1693833208428,0.02826094,25887.0,25886.0,0.2398418]
[1693833208858,0.02826094,25887.0,25886.0,0.2148418]
[1693833209128,0.02826094,25887.0,25886.0,0.2378418]
[1693833210061,0.02826094,25887.0,25886.0,0.21517675]
[1693833214140,0.02826094,25887.0,25886.0,0.24226087]
[1693833214543,0.02826094,25887.0,25886.0,0.60226353]
[1693833214843,0.02826094,25887.0,25886.0,0.62602706]
[1693833215705,0.02826094,25887.0,25886.0,0.718379]
[1693833225509,0.02826094,25887.0,25886.0,0.74904555]
[1693833227114,0.02826094,25887.0,25886.0,0.72528202]
[1693833227324,0.02826094,25887.0,25886.0,0.75096684]
[1693833227909,0.02826094,25887.0,25886.0,0.88949475]
[1693833229175,0.02826094,25887.0,25886.0,0.86949475]
[1693833231474,0.02826094,25887.0,25886.0,0.99987928]
[1693833231897,0.02826094,25887.0,25886.0,1.15889834]
[1693833232097,0.02826094,25887.0,25886.0,1.18073164]
[1693833234465,0.02826094,25887.0,25886.0,0.99602776]
[1693833235395,0.02826094,25887.0,25886.0,0.97419446]
[1693833235627,0.02826094,25887.0,25886.0,0.70552633]
[1693833236241,0.02826094,25887.0,25886.0,0.31843955]
[1693833241684,0.02826094,25887.0,25886.0,0.36437121]
[1693833241880,0.02826094,25887.0,25886.0,0.31846949]
[1693833244109,0.02826094,25887.0,25886.0,0.4569974]
[1693833244318,0.02826094,25887.0,25886.0,0.31846949]
[1693833248650,0.2594308,25887.0,25886.0,0.28780294]
[1693833249653,0.2594308,25887.0,25886.0,0.19517675]
[1693833249851,0.2594308,25887.0,25886.0,0.28780294]
[1693833250080,0.2594308,25887.0,25886.0,0.19517675]
[1693833250433,0.2594308,25887.0,25886.0,0.07162075]
[1693833250434,0.2544308,25887.0,25886.0,0.07162075]
[1693833255374,0.02326094,25887.0,25886.0,0.07162075]
[1693833255581,0.02326094,25887.0,25886.0,0.17952075]
[1693833257053,0.02326094,25887.0,25886.0,0.21955714]
[1693833260339,0.02326094,25887.0,25886.0,0.60664392]
[1693833261177,0.02326094,25887.0,25886.0,0.69927011]
[1693833265845,0.01826094,25887.0,25886.0,0.69927011]
[1693833266024,0.02310265,25887.0,25886.0,0.69927011]
[1693833270609,0.02310265,25887.0,25886.0,0.67488972]
[1693833270817,0.02310265,25887.0,25886.0,0.69785294]
[1693833272178,0.02310265,25887.0,25886.0,0.69780446]
[1693833277118,0.02310265,25887.0,25886.0,0.83667103]
[1693833279925,0.02310265,25887.0,25886.0,0.96816088]
[1693833280256,0.02310265,25887.0,25886.0,1.06073333]
[1693833280514,0.02310265,25887.0,25886.0,0.83666577]
[1693833280917,0.02310265,25887.0,25886.0,0.81370255]
[1693833281123,0.02310265,25887.0,25886.0,0.83814985]
[1693833282271,0.02310265,25887.0,25886.0,0.96976964]
[1693833282476,0.02310265,25887.0,25886.0,1.03789333]
[1693833283262,0.02310265,25887.0,25886.0,1.06236955]
[1693833284859,0.02310265,25887.0,25886.0,0.83817731]
[1693833287694,0.02310265,25887.0,25886.0,0.69931074]
[1693833288109,0.02310265,25887.0,25886.0,0.67483452]
[1693833288322,0.02310265,25887.0,25886.0,0.69678696]
[1693833289153,0.02310265,25887.0,25886.0,0.62883452]
[1693833289357,0.02310265,25887.0,25886.0,0.67904748]
[1693833289761,0.02310265,25887.0,25886.0,0.65404748]
[1693833289971,0.02310265,25887.0,25886.0,1.01691503]
[1693833290162,0.02310265,25887.0,25886.0,0.92434404]
[1693833290363,0.02310265,25887.0,25886.0,0.94934404]
[1693833291157,0.02310265,25887.0,25886.0,0.97434404]
[1693833291371,0.02310265,25887.0,25886.0,0.84290227]
[1693833291574,0.02310265,25887.0,25886.0,0.84290117]
[1693833291986,0.02310265,25887.0,25886.0,0.81790117]
[1693833292430,0.02310265,25887.0,25886.0,0.84290117]
[1693833293722,0.02310265,25887.0,25886.0,0.81768821]
[1693833294122,0.02310265,25887.0,25886.0,1.0093601]
[1693833294327,0.02310265,25887.0,25886.0,1.3093601]
[1693833298663,0.02310265,25887.0,25886.0,1.49451553]
[1693833300221,0.02310265,25887.0,25886.0,1.52304291]
[1693833300483,0.02310265,25887.0,25886.0,1.35564896]
[1693833300742,0.02310265,25887.0,25886.0,1.38077123]
[1693833301000,0.02310265,25887.0,25886.0,1.35564896]
[1693833301246,0.02310265,25887.0,25886.0,1.38642167]
[1693833301453,0.02310265,25887.0,25886.0,1.35564896]
[1693833304368,0.02310265,25887.0,25886.0,1.58709325]
[1693833304825,0.02310265,25887.0,25886.0,1.61382667]
[1693833305024,0.02310265,25887.0,25886.0,1.40193782]
[1693833306444,0.02310265,25887.0,25886.0,1.83358437]
[1693833306646,0.02310265,25887.0,25886.0,2.07679306]
[1693833310238,0.02310265,25887.0,25886.0,1.84534877]
[1693833312284,0.02310265,25887.0,25886.0,2.07679306]
[1693833313426,0.02310265,25887.0,25886.0,1.89159774]
[1693833314476,0.02310265,25887.0,25886.0,2.07680188]
[1693833315593,0.02310265,25887.0,25886.0,1.61188851]
[1693833316011,0.02310265,25887.0,25886.0,1.51936372]
[1693833316428,0.02310265,25887.0,25886.0,1.38044422]
[1693833316862,0.02310265,25887.0,25886.0,1.51936513]
[1693833317075,0.02310265,25887.0,25886.0,1.33416099]
[1693833318130,0.02310265,25887.0,25886.0,1.27416099]
[1693833318335,0.02310265,25887.0,25886.0,1.33416099]
[1693833320123,0.02310265,25887.0,25886.0,0.94941444]
[1693833320333,0.23256885,25887.0,25886.0,0.8178107]
[1693833321504,0.23256885,25887.0,25886.0,0.43072392]
[1693833321714,0.23256885,25887.0,25886.0,0.65640024]
[1693833321906,0.02310265,25887.0,25886.0,0.65640024]
[1693833323142,0.02310265,25887.0,25886.0,0.65676578]
[1693833323351,0.02310265,25887.0,25886.0,0.58869461]
[1693833325546,0.02310265,25887.0,25886.0,0.97578139]
[1693833326552,0.02310265,25887.0,25886.0,1.16102404]
[1693833326928,0.02310265,25887.0,25886.0,1.04385257]
[1693833327140,0.02310265,25887.0,25886.0,1.06740128]
[1693833327740,0.02310265,25887.0,25886.0,1.25260364]
[1693833329431,0.02310265,25887.0,25886.0,1.28905493]
[1693833329650,0.02310265,25887.0,25886.0,1.40385257]
[1693833330337,0.02310265,25887.0,25886.0,1.42770486]
[1693833330769,0.02310265,25887.0,25886.0,1.38132282]
[1693833331189,0.02310265,25887.0,25886.0,1.35747053]
[1693833331391,0.02310265,25887.0,25886.0,1.3817409]
[1693833331804,0.02310265,25887.0,25886.0,1.35747053]
[1693833332012,0.02310265,25887.0,25886.0,1.38697735]
[1693833332432,0.02310265,25887.0,25886.0,1.43335939]
[1693833333950,0.02310265,25887.0,25886.0,1.40385257]
[1693833334377,0.02310265,25887.0,25886.0,1.42714673]
[1693833337640,0.02310265,25887.0,25886.0,1.42703236]
[1693833337834,0.02310265,25887.0,25886.0,1.4268739]
[1693833346290,0.02310265,25887.0,25886.0,1.40357974]
[1693833346500,0.02310265,25887.0,25886.0,1.43381367]
[1693833346916,0.02310265,25887.0,25886.0,1.40357974]
[1693833351117,0.02310265,25887.0,25886.0,1.17202643]
[1693833351544,0.02310265,25887.0,25886.0,1.19871604]
[1693833352841,0.02310265,25887.0,25886.0,1.17202643]
[1693833353040,0.02310265,25887.0,25886.0,1.12202643]
[1693833353250,0.02310265,25887.0,25886.0,1.17484726]
[1693833353668,0.02310265,25887.0,25886.0,1.14984726]
[1693833354270,0.02310265,25887.0,25886.0,1.14702643]
[1693833354478,0.02310265,25887.0,25886.0,1.17202643]
[1693833354649,0.02310265,25887.0,25886.0,1.14702643]
[1693833355051,0.02310265,25887.0,25886.0,1.19883689]
[1693833355654,0.02310265,25887.0,25886.0,1.43016628]
[1693833357853,0.02976927,25887.0,25886.0,1.43016628]
[1693833359933,0.02976927,25887.0,25886.0,1.19883689]
[1693833363417,0.02976927,25887.0,25886.0,1.17202643]
[1693833364907,0.02976927,25887.0,25886.0,1.19425407]
[1693833365554,0.02976927,25887.0,25886.0,1.17202643]
[1693833365759,0.02976927,25887.0,25886.0,1.19795466]
[1693833366395,0.02976927,25887.0,25886.0,1.17202643]
[1693833366604,0.21726661,25889.0,25888.0,0.075656]
[1693833366813,6.1e-07,25889.0,25888.0,1.00568488]
[1693833367016,6.1e-07,25889.0,25888.0,1.7527904]
[1693833367219,6.1e-07,25889.0,25888.0,1.8223904]
[1693833367428,6.1e-07,25889.0,25888.0,1.63716598]
[1693833367636,0.03083346,25889.0,25888.0,1.63638598]
[1693833367841,0.03083346,25889.0,25888.0,1.63668598]
[1693833368045,0.03083346,25889.0,25888.0,1.63626598]
[1693833368046,6.1e-07,25889.0,25888.0,1.63626598]
[1693833368252,6.1e-07,25889.0,25888.0,1.63608598]
[1693833368459,6.1e-07,25889.0,25888.0,1.63338598]
[1693833368675,6.1e-07,25889.0,25888.0,1.63308598]
[1693833369071,6.1e-07,25889.0,25888.0,1.63302598]
[1693833369275,6.1e-07,25889.0,25888.0,1.65922598]
[1693833369479,6.1e-07,25889.0,25888.0,1.66366598]
[1693833369689,6.1e-07,25889.0,25888.0,1.68866598]
[1693833369890,6.1e-07,25889.0,25888.0,1.68878598]
[1693833370040,6.1e-07,25889.0,25888.0,1.68944598]
[1693833370251,6.1e-07,25889.0,25888.0,1.66450598]
[1693833370455,6.1e-07,25889.0,25888.0,1.68830598]
[1693833370656,6.1e-07,25889.0,25888.0,1.68866598]
[1693833371004,6.1e-07,25889.0,25888.0,1.63854598]
[1693833371209,6.1e-07,25889.0,25888.0,1.66366598]
[1693833371413,6.1e-07,25889.0,25888.0,1.66408598]
[1693833371616,6.1e-07,25889.0,25888.0,1.66144598]
[1693833371816,6.1e-07,25889.0,25888.0,1.66108598]
[1693833372155,6.1e-07,25889.0,25888.0,1.66102598]
[1693833372405,6.1e-07,25889.0,25888.0,1.66114598]